fUST/lending_fUST_20240725
["ID","MTS","AMOUNT","RATE_DAILY","PERIOD"]
[333178338,1721920266487,-500.0,0.00015068,2]
[333178339,1721920266498,-500.0,0.00015068,2]
[333178340,1721920266511,-500.0,0.00015068,2]
[333178341,1721920266521,-883.04,0.00015068,2]
[333178342,1721920266532,-500.0,0.00015068,2]
[333178343,1721920266542,-500.0,0.00015068,2]
[333178344,1721920266554,-500.0,0.00015068,2]
[333178345,1721920266564,-1537.87,0.00015068,2]
[333178346,1721920266574,-500.0,0.00015068,2]
[333178347,1721920266584,-603.41,0.00015068,2]
[333178348,1721920266595,-500.0,0.00015068,2]
[333178349,1721920266607,-500.0,0.00015068,2]
[333178350,1721920266617,-110.99374915,0.00015068,2]
[333178351,1721920266659,273.37336231,9.9e-05,2]
[333178352,1721920266892,-389.00625085,0.00015068,2]
[333178353,1721920266904,-500.0,0.00015068,2]
[333178354,1721920266916,-500.0,0.00015068,2]
[333178355,1721920266928,-500.0,0.00015068,2]
[333178356,1721920266939,-500.0,0.00015068,2]
[333178357,1721920266951,-243.70154818,0.00015068,2]
[333178358,1721920267631,-500.0,0.00013698,2]
[333178359,1721920267641,-500.0,0.00013698,2]
[333178360,1721920267651,-500.0,0.00013698,2]
[333178361,1721920267664,-197.96134159,0.00013698,2]
[333178362,1721920267675,-500.0,0.00013698,2]
[333178363,1721920267685,-500.0,0.00013698,2]
[333178364,1721920267694,-500.0,0.00013698,2]
[333178365,1721920267705,-500.0,0.00013698,2]
[333178366,1721920267719,-289.41168397,0.00013698,2]
[333178367,1721920270825,154.80649189,9.999e-05,2]
[333178368,1721920271697,273.37336231,9.9e-05,2]
[333178369,1721920279835,273.37336231,9.9e-05,2]
[333178370,1721920288442,273.37336231,9.9e-05,2]
[333178372,1721920296608,273.37336231,9.9e-05,2]
[333178373,1721920300890,196.81538309,9.999e-05,2]
[333178374,1721920305032,273.37336231,9.9e-05,2]
[333178375,1721920313136,273.37336231,9.9e-05,2]
[333178376,1721920321376,273.37336231,9.9e-05,2]
[333178377,1721920330016,273.37336231,9.9e-05,2]
[333178378,1721920338325,273.37336231,9.9e-05,2]
[333178379,1721920346575,273.37336231,9.9e-05,2]
[333178380,1721920354970,273.37336231,9.9e-05,2]
[333178381,1721920363683,273.37336231,9.9e-05,2]
[333178382,1721920373464,273.37336231,9.9e-05,2]
[333178383,1721920381857,273.37336231,9.9e-05,2]
[333178384,1721920390417,273.37336231,9.9e-05,2]
[333178385,1721920395299,201.87119562,9.999e-05,2]
[333178386,1721920399016,273.37336231,9.9e-05,2]
[333178387,1721920400503,304.4156237,9.999e-05,2]
[333178388,1721920401461,418.17631036,9.999e-05,2]
[333178389,1721920401637,195.92585965,9.999e-05,2]
[333178390,1721920403238,341.69630942,9.999e-05,2]
[333178391,1721920407979,273.37336231,9.9e-05,2]
[333178392,1721920410095,968.14358809,9.999e-05,2]
[333178393,1721920410814,848.53287184,9.999e-05,2]
[333178394,1721920411861,162.23305382,9.999e-05,2]
[333178395,1721920412081,404.34085405,9.999e-05,2]
[333178396,1721920412606,941.66960481,9.999e-05,2]
[333178397,1721920412782,201.273204,9.999e-05,2]
[333178398,1721920414206,154.80649189,9.999e-05,2]
[333178399,1721920416060,319.40039305,9.999e-05,2]
[333178400,1721920416160,273.37336231,9.9e-05,2]
[333178401,1721920417106,403.32733275,9.999e-05,2]
[333178402,1721920420488,157.64183891,9.999e-05,2]
[333178403,1721920421959,154.86977807,9.999e-05,2]
[333178404,1721920422556,375.64530467,9.999e-05,2]
[333178405,1721920423477,180.29524211,9.999e-05,2]
[333178406,1721920424642,154.88678402,9.999e-05,2]
[333178407,1721920424898,157.64183891,9.899e-05,2]
[333178408,1721920425070,493.72845005,9.999e-05,2]
[333178409,1721920426447,156.572996,9.999e-05,2]
[333178410,1721920426654,519.06293676,9.999e-05,2]
[333178411,1721920430875,309.53569723,9.999e-05,2]
[333178412,1721920433148,-273.37336231,9.9e-05,2]
[333178413,1721920434241,726.77830691,9.999e-05,2]
[333178414,1721920436092,542.52748339,9.999e-05,2]
[333178416,1721920440822,663.56673998,9.999e-05,2]
[333178417,1721920441382,273.37336231,9.9e-05,2]
[333178418,1721920442803,309.50481162,0.0001,2]
[333178419,1721920443122,521.4865626,9.999e-05,2]
[333178420,1721920444115,300.05909145,9.999e-05,2]
[333178421,1721920450044,273.37336231,9.9e-05,2]
[333178422,1721920459034,273.37336231,9.9e-05,2]
[333178423,1721920467648,273.37336231,9.9e-05,2]
[333178424,1721920471111,350.77118343,9.999e-05,2]
[333178425,1721920475973,273.37336231,9.9e-05,2]
[333178426,1721920485452,273.37336231,9.9e-05,2]
[333178427,1721920493767,273.37336231,9.9e-05,2]
[333178428,1721920502202,273.37336231,9.9e-05,2]
[333178431,1721920510700,273.37336231,9.9e-05,2]
[333178432,1721920518660,273.37336231,9.9e-05,2]
[333178433,1721920525217,271.85268908,9.999e-05,2]
[333178434,1721920526982,273.37336231,9.9e-05,2]
[333178435,1721920535037,273.37336231,9.9e-05,2]
[333178436,1721920544626,273.37336231,9.9e-05,2]
[333178437,1721920552648,273.37336231,9.9e-05,2]
[333178438,1721920561055,273.37336231,9.9e-05,2]
[333178439,1721920569702,273.37336231,9.9e-05,2]
[333178440,1721920572033,154.79103211,9.999e-05,2]
[333178441,1721920573186,154.79103211,9.999e-05,2]
[333178442,1721920573964,154.79103211,9.999e-05,2]
[333178443,1721920575355,154.79103211,9.999e-05,2]
[333178444,1721920577911,273.37336231,9.9e-05,2]
[333178445,1721920578231,154.79103211,9.999e-05,2]
[333178446,1721920586002,273.37336231,9.9e-05,2]
[333178447,1721920594288,273.37336231,9.9e-05,2]
[333178448,1721920602425,273.37336231,9.9e-05,2]
[333178449,1721920611130,273.37336231,9.9e-05,2]
[333178450,1721920619351,273.37336231,9.9e-05,2]
[333178451,1721920628377,273.37336231,9.9e-05,2]
[333178452,1721920636464,273.37336231,9.9e-05,2]
[333178453,1721920639384,154.79103211,0.0001,2]
[333178454,1721920644761,273.37336231,9.9e-05,2]
[333178455,1721920653392,273.37336231,9.9e-05,2]
[333178456,1721920661715,273.37336231,9.9e-05,2]
[333178458,1721920669846,273.37336231,9.9e-05,2]
[333178459,1721920678128,273.37336231,9.9e-05,2]
[333178460,1721920686788,273.37336231,9.9e-05,2]
[333178461,1721920695303,273.37336231,9.9e-05,2]
[333178463,1721920703456,273.37336231,9.9e-05,2]
[333178464,1721920711804,273.37336231,9.9e-05,2]
[333178465,1721920720381,273.37336231,9.9e-05,2]
[333178466,1721920729430,273.37336231,9.9e-05,2]
[333178467,1721920737442,273.37336231,9.9e-05,2]
[333178468,1721920745837,273.37336231,9.9e-05,2]
[333178469,1721920753711,273.37336231,9.9e-05,2]
[333178470,1721920762145,273.37336231,9.9e-05,2]
[333178472,1721920770195,273.37336231,9.9e-05,2]
[333178473,1721920780269,273.37336231,9.9e-05,2]
[333178474,1721920789521,273.37336231,9.9e-05,2]
[333178475,1721920797918,273.37336231,9.9e-05,2]
[333178476,1721920806546,273.37336231,9.9e-05,2]
[333178477,1721920814858,273.37336231,9.9e-05,2]
[333178478,1721920822976,273.37336231,9.9e-05,2]
[333178479,1721920831323,273.37336231,9.9e-05,2]
[333178481,1721921045148,273.37336231,9.9e-05,2]
[333178489,1721921217168,-300.00361797,0.00010959,2]
[333178597,1721921433950,-339.5000166,0.00010959,2]
[333178616,1721921438044,-143.9299834,0.00010959,2]
[333178617,1721921438055,-300.0,0.00011351,2]
[333178618,1721921438066,-300.0,0.00011351,2]
[333178619,1721921438079,-1197.72818535,0.00011352,2]
[333178620,1721921438114,-23702.27181465,0.00011352,2]
[333178621,1721921438124,-250.0,0.00011849,2]
[333178622,1721921438133,-250.0,0.00011881,2]
[333178623,1721921438144,-250.0,0.00011914,2]
[333178624,1721921438156,-250.0,0.00011946,2]
[333178625,1721921438168,-250.0,0.00011979,2]
[333178626,1721921438177,-814.21648388,0.00012,2]
[333178627,1721921438187,-250.0,0.00012011,2]
[333178628,1721921438198,-250.0,0.00012044,2]
[333178629,1721921438208,-250.0,0.00012076,2]
[333178631,1721921438217,-250.0,0.00012109,2]
[333178633,1721921438227,-250.0,0.00012141,2]
[333178634,1721921438238,-250.0,0.00012174,2]
[333178635,1721921438250,-250.0,0.00012206,2]
[333178636,1721921438261,-250.0,0.00012239,2]
[333178637,1721921438270,-250.0,0.00012271,2]
[333178638,1721921438279,-250.0,0.00012304,2]
[333178639,1721921438288,-250.0,0.00012336,2]
[333178641,1721921438298,-250.0,0.00012369,2]
[333178642,1721921438307,-250.0,0.00012401,2]
[333178643,1721921438317,-250.0,0.00012434,2]
[333178644,1721921438326,-250.0,0.00012466,2]
[333178645,1721921438335,-420.0,0.00012469,2]
[333178646,1721921438345,-420.0,0.00012486,2]
[333178647,1721921438355,-2290.53839626,0.00013,2]
[333178648,1721921438365,-232.124583,0.0001338,2]
[333178649,1721921438374,-167.069487,0.0001338,2]
[333178650,1721921438384,-150.940153,0.0001338,2]
[333178651,1721921438393,-200.0,0.00013425,2]
[333178652,1721921438403,-182403.910498,0.00013688,2]
[333178653,1721921438413,-36480.7820996,0.00013689,2]
[333178654,1721921438422,-587.0,0.00013697,2]
[333178655,1721921438432,-151.0,0.00013698,2]
[333178656,1721921438441,-151.0,0.00013698,2]
[333178657,1721921438451,-500.0,0.00013698,2]
[333178658,1721921438460,-500.0,0.00013698,2]
[333178659,1721921438469,-500.0,0.00013698,2]
[333178660,1721921438479,-152.66781668,0.00013698,2]
[333178661,1721921438488,-151.0,0.00013698,2]
[333178662,1721921438498,-151.0,0.00013698,2]
[333178663,1721921438508,-151.0,0.00013698,2]
[333178664,1721921438518,-151.0,0.00013698,2]
[333178665,1721921438529,-162.6,0.00013698,2]
[333178666,1721921438539,-500.0,0.00013698,2]
[333178667,1721921438550,-500.0,0.00013698,2]
[333178668,1721921438562,-614.92,0.00013698,2]
[333178669,1721921438572,-500.0,0.00013698,2]
[333178670,1721921438583,-500.0,0.00013698,2]
[333178671,1721921438593,-500.0,0.00013698,2]
[333178672,1721921438605,-500.0,0.00013698,2]
[333178673,1721921438617,-199.48195712,0.00013698,2]
[333178674,1721921438628,-500.0,0.00013698,2]
[333178675,1721921438640,-514.27781184,0.00013698,2]
[333178676,1721921438653,-500.0,0.00013698,2]
[333178677,1721921438665,-500.0,0.00013698,2]
[333178678,1721921438677,-500.0,0.00013698,2]
[333178679,1721921438687,-674.19,0.00013698,2]
[333178680,1721921438698,-500.0,0.00013698,2]
[333178681,1721921438709,-749.63,0.00013698,2]
[333178682,1721921438721,-500.0,0.00013698,2]
[333178683,1721921438733,-500.0,0.00013698,2]
[333178684,1721921438745,-500.0,0.00013698,2]
[333178685,1721921438755,-370.12395079,0.00013698,2]
[333178686,1721921438766,-500.0,0.00013698,2]
[333178687,1721921438776,-493.88105072,0.00013698,2]
[333178688,1721921438786,-500.0,0.00013698,2]
[333178689,1721921438795,-500.0,0.00013698,2]
[333178690,1721921438805,-500.0,0.00013698,2]
[333178691,1721921438815,-597.72,0.00013698,2]
[333178692,1721921438824,-500.0,0.00013698,2]
[333178693,1721921438834,-1254.57,0.00013698,2]
[333178694,1721921438843,-500.0,0.00013698,2]
[333178695,1721921438853,-500.0,0.00013698,2]
[333178696,1721921438863,-500.0,0.00013698,2]
[333178697,1721921438872,-583.09,0.00013698,2]
[333178698,1721921438882,-500.0,0.00013698,2]
[333178699,1721921438891,-502.63022932,0.00013698,2]
[333178700,1721921438901,-500.0,0.00013698,2]
[333178701,1721921438911,-500.0,0.00013698,2]
[333178702,1721921438920,-904.41,0.00013698,2]
[333178703,1721921438929,-500.0,0.00013698,2]
[333178704,1721921438940,-1332.28,0.00013698,2]
[333178705,1721921438949,-516.38,0.00013698,2]
[333178706,1721921438959,-500.0,0.00013698,2]
[333178707,1721921438968,-860.91,0.00013698,2]
[333178708,1721921438978,-500.0,0.00013698,2]
[333178709,1721921438988,-500.0,0.00013698,2]
[333178710,1721921439002,-500.0,0.00013698,2]
[333178711,1721921439011,-1077.9,0.00013698,2]
[333178712,1721921439020,-500.0,0.00013698,2]
[333178713,1721921439031,-500.0,0.00013698,2]
[333178714,1721921439041,-502.84,0.00013698,2]
[333178715,1721921439050,-500.0,0.00013698,2]
[333178716,1721921439059,-500.0,0.00013698,2]
[333178717,1721921439070,-500.0,0.00013698,2]
[333178718,1721921439080,-500.0,0.00013698,2]
[333178719,1721921439090,-1895.85,0.00013698,2]
[333178720,1721921439100,-500.0,0.00013698,2]
[333178721,1721921439111,-500.0,0.00013698,2]
[333178722,1721921439121,-1451.23,0.00013698,2]
[333178723,1721921439132,-500.0,0.00013698,2]
[333178724,1721921439143,-1303.36,0.00013698,2]
[333178725,1721921439154,-500.0,0.00013698,2]
[333178726,1721921439166,-562.11,0.00013698,2]
[333178727,1721921439177,-500.0,0.00013698,2]
[333178728,1721921439188,-500.0,0.00013698,2]
[333178729,1721921439199,-500.0,0.00013698,2]
[333178730,1721921439211,-500.0,0.00013698,2]
[333178731,1721921439221,-649.07,0.00013698,2]
[333178732,1721921439231,-503.68402711,0.00013698,2]
[333178733,1721921439241,-500.0,0.00013698,2]
[333178734,1721921439251,-500.0,0.00013698,2]
[333178735,1721921439261,-500.0,0.00013698,2]
[333178736,1721921439270,-500.0,0.00013698,2]
[333178737,1721921439280,-1267.75,0.00013698,2]
[333178738,1721921439289,-500.0,0.00013698,2]
[333178739,1721921439299,-607.25,0.00013698,2]
[333178740,1721921439308,-671.36,0.00013698,2]
[333178741,1721921439319,-500.0,0.00013698,2]
[333178742,1721921439329,-500.0,0.00013698,2]
[333178743,1721921439339,-500.0,0.00013698,2]
[333178744,1721921439348,-500.0,0.00013698,2]
[333178745,1721921439357,-935.58,0.00013698,2]
[333178746,1721921439366,-500.0,0.00013698,2]
[333178747,1721921439375,-500.0,0.00013698,2]
[333178748,1721921439385,-1014.26,0.00013698,2]
[333178749,1721921439395,-500.0,0.00013698,2]
[333178750,1721921439410,-500.0,0.00013698,2]
[333178751,1721921439420,-500.0,0.00013698,2]
[333178752,1721921439429,-1191.26,0.00013698,2]
[333178753,1721921439438,-500.0,0.00013698,2]
[333178754,1721921439448,-812.42,0.00013698,2]
[333178755,1721921439458,-831.13,0.00013698,2]
[333178756,1721921439467,-500.0,0.00013698,2]
[333178757,1721921439477,-269.37015071,0.00013698,2]
[333178758,1721921439486,-500.0,0.00013698,2]
[333178759,1721921439498,-500.0,0.00013698,2]
[333178760,1721921439507,-500.0,0.00013698,2]
[333178761,1721921439517,-500.0,0.00013698,2]
[333178762,1721921439527,-1176.05,0.00013698,2]
[333178763,1721921439536,-500.0,0.00013698,2]
[333178764,1721921439546,-500.0,0.00013698,2]
[333178765,1721921439556,-742.0,0.00013698,2]
[333178766,1721921439565,-500.0,0.00013698,2]
[333178767,1721921439574,-847.59,0.00013698,2]
[333178768,1721921439587,-742.07,0.00013698,2]
[333178769,1721921439596,-500.0,0.00013698,2]
[333178770,1721921439606,-228.60957987,0.00013698,2]
[333178771,1721921439615,-500.0,0.00013698,2]
[333178772,1721921439624,-505.9,0.00013698,2]
[333178773,1721921439633,-500.0,0.00013698,2]
[333178774,1721921439643,-500.0,0.00013698,2]
[333178775,1721921439653,-1431.82,0.00013698,2]
[333178776,1721921439662,-500.0,0.00013698,2]
[333178777,1721921439671,-500.0,0.00013698,2]
[333178778,1721921439680,-658.5,0.00013698,2]
[333178779,1721921439690,-500.0,0.00013698,2]
[333178781,1721921439699,-500.0,0.00013698,2]
[333178783,1721921439709,-589.95,0.00013698,2]
[333178784,1721921439718,-655.26,0.00013698,2]
[333178786,1721921439727,-500.0,0.00013698,2]
[333178788,1721921439737,-500.0,0.00013698,2]
[333178790,1721921439750,-500.0,0.00013698,2]
[333178791,1721921439762,-1052.95,0.00013698,2]
[333178793,1721921439771,-500.0,0.00013698,2]
[333178795,1721921439781,-508.43,0.00013698,2]
[333178796,1721921439791,-554.65556923,0.00013698,2]
[333178797,1721921439808,-518.46527194,0.00013698,2]
[333178798,1721921439817,-1119.69,0.00013698,2]
[333178799,1721921439827,-500.0,0.00013698,2]
[333178800,1721921439836,-500.0,0.00013698,2]
[333178801,1721921439845,-1127.25,0.00013698,2]
[333178802,1721921439854,-500.0,0.00013698,2]
[333178803,1721921439863,-500.0,0.00013698,2]
[333178804,1721921439872,-500.0,0.00013698,2]
[333178805,1721921439882,-500.0,0.00013698,2]
[333178806,1721921439891,-500.0,0.00013698,2]
[333178807,1721921439901,-500.0,0.00013698,2]
[333178808,1721921439911,-1039.37,0.00013698,2]
[333178809,1721921439920,-889.43,0.00013698,2]
[333178810,1721921439929,-500.0,0.00013698,2]
[333178811,1721921439939,-500.0,0.00013698,2]
[333178812,1721921439948,-911.47,0.00013698,2]
[333178813,1721921439957,-500.0,0.00013698,2]
[333178814,1721921439968,-500.0,0.00013698,2]
[333178815,1721921439977,-500.0,0.00013698,2]
[333178816,1721921439987,-561.46,0.00013698,2]
[333178817,1721921440000,-1574.37,0.00013698,2]
[333178818,1721921440010,-500.0,0.00013698,2]
[333178819,1721921440019,-175.3812205,0.00013698,2]
[333178820,1721921440029,-500.0,0.00013698,2]
[333178821,1721921440039,-765.44,0.00013698,2]
[333178822,1721921440048,-500.0,0.00013698,2]
[333178823,1721921440058,-500.0,0.00013698,2]
[333178824,1721921440067,-500.0,0.00013698,2]
[333178825,1721921440079,-500.0,0.00013698,2]
[333178826,1721921440088,-551.03,0.00013698,2]
[333178827,1721921440097,-500.0,0.00013698,2]
[333178828,1721921440107,-1058.33,0.00013698,2]
[333178829,1721921440116,-500.0,0.00013698,2]
[333178830,1721921440125,-500.0,0.00013698,2]
[333178831,1721921440135,-1011.11,0.00013698,2]
[333178832,1721921440145,-500.0,0.00013698,2]
[333178833,1721921440154,-500.0,0.00013698,2]
[333178834,1721921440164,-500.0,0.00013698,2]
[333178835,1721921440174,-289.33739864,0.00013698,2]
[333178836,1721921440184,-500.0,0.00013698,2]
[333178837,1721921440193,-500.0,0.00013698,2]
[333178838,1721921440203,-500.0,0.00013698,2]
[333178839,1721921440212,-500.0,0.00013698,2]
[333178840,1721921440222,-873.65,0.00013698,2]
[333178841,1721921440231,-842.63,0.00013698,2]
[333178842,1721921440241,-500.0,0.00013698,2]
[333178843,1721921440250,-500.0,0.00013698,2]
[333178844,1721921440260,-500.0,0.00013698,2]
[333178845,1721921440269,-579.4,0.00013698,2]
[333178846,1721921440279,-500.0,0.00013698,2]
[333178847,1721921440288,-500.0,0.00013698,2]
[333178848,1721921440298,-500.0,0.00013698,2]
[333178849,1721921440308,-1421.14,0.00013698,2]
[333178850,1721921440318,-2236.91,0.00013698,2]
[333178851,1721921440327,-813.48,0.00013698,2]
[333178852,1721921440337,-500.0,0.00013698,2]
[333178853,1721921440347,-2061.38,0.00013698,2]
[333178854,1721921440357,-500.0,0.00013698,2]
[333178855,1721921440366,-592.15,0.00013698,2]
[333178856,1721921440377,-500.0,0.00013698,2]
[333178857,1721921440387,-1008.74,0.00013698,2]
[333178858,1721921440396,-500.0,0.00013698,2]
[333178859,1721921440406,-2042.49,0.00013698,2]
[333178860,1721921440415,-500.0,0.00013698,2]
[333178861,1721921440425,-500.0,0.00013698,2]
[333178862,1721921440435,-500.0,0.00013698,2]
[333178863,1721921440444,-2880.93,0.00013698,2]
[333178864,1721921440454,-967.19,0.00013698,2]
[333178865,1721921440464,-500.0,0.00013698,2]
[333178866,1721921440474,-500.0,0.00013698,2]
[333178867,1721921440484,-1803.01,0.00013698,2]
[333178868,1721921440495,-500.0,0.00013698,2]
[333178869,1721921440504,-721.15,0.00013698,2]
[333178870,1721921440513,-1993.09555262,0.00013698,2]
[333178880,1721921441033,-1114.40444738,0.00013698,2]
[333178881,1721921441044,-585.33335433,0.00013698,2]
[333178882,1721921441054,-500.0,0.00013698,2]
[333178883,1721921441064,-500.0,0.00013698,2]
[333178884,1721921441074,-507.05226796,0.00013698,2]
[333178885,1721921441083,-189.08406,0.00013698,2]
[333178886,1721921441093,-1585.88,0.00013698,2]
[333178887,1721921441103,-500.0,0.00013698,2]
[333178888,1721921441113,-500.0,0.00013698,2]
[333178889,1721921441123,-500.0,0.00013698,2]
[333178890,1721921441132,-492.82073849,0.00013698,2]
[333178891,1721921441144,-7.17926151,0.00013698,2]
[333178892,1721921441153,-980.59,0.00013698,2]
[333178893,1721921441162,-500.0,0.00013698,2]
[333178894,1721921441172,-500.0,0.00013698,2]
[333178895,1721921441182,-500.0,0.00013698,2]
[333178896,1721921441191,-500.0,0.00013698,2]
[333178897,1721921441201,-834.64,0.00013698,2]
[333178898,1721921441210,-500.0,0.00013698,2]
[333178899,1721921441219,-500.0,0.00013698,2]
[333178900,1721921441229,-818.88,0.00013698,2]
[333178901,1721921441238,-1689.86,0.00013698,2]
[333178902,1721921441248,-10420.49,0.00013698,2]
[333178903,1721921441257,-500.0,0.00013698,2]
[333178904,1721921441266,-500.0,0.00013698,2]
[333178905,1721921441276,-500.0,0.00013698,2]
[333178906,1721921441285,-500.0,0.00013698,2]
[333178907,1721921441295,-500.0,0.00013698,2]
[333178908,1721921441306,-500.0,0.00013698,2]
[333178909,1721921441315,-500.0,0.00013698,2]
[333178910,1721921441325,-989.63,0.00013698,2]
[333178911,1721921441335,-500.0,0.00013698,2]
[333178912,1721921441344,-4408.74,0.00013698,2]
[333178913,1721921441353,-500.0,0.00013698,2]
[333178914,1721921441362,-1764.69,0.00013698,2]
[333178915,1721921441372,-6993.47,0.00013698,2]
[333178916,1721921441381,-500.0,0.00013698,2]
[333178917,1721921441391,-500.0,0.00013698,2]
[333178918,1721921441401,-884.66,0.00013698,2]
[333178919,1721921441410,-1925.97,0.00013698,2]
[333178920,1721921441421,-500.0,0.00013698,2]
[333178921,1721921441431,-1687.42,0.00013698,2]
[333178922,1721921441443,-9992.31,0.00013698,2]
[333178923,1721921441455,-500.0,0.00013698,2]
[333178924,1721921441466,-500.0,0.00013698,2]
[333178925,1721921441478,-500.0,0.00013698,2]
[333178926,1721921441489,-500.0,0.00013698,2]
[333178927,1721921441499,-557.83,0.00013698,2]
[333178928,1721921441510,-578.65,0.00013698,2]
[333178929,1721921441522,-504.83,0.00013698,2]
[333178930,1721921441533,-500.0,0.00013698,2]
[333178931,1721921441545,-885.15,0.00013698,2]
[333178932,1721921441556,-500.0,0.00013698,2]
[333178933,1721921441568,-500.0,0.00013698,2]
[333178934,1721921441579,-978.43,0.00013698,2]
[333178935,1721921441591,-500.0,0.00013698,2]
[333178936,1721921441603,-500.0,0.00013698,2]
[333178937,1721921441614,-500.0,0.00013698,2]
[333178938,1721921441624,-500.0,0.00013698,2]
[333178939,1721921441635,-512.45577569,0.00013698,2]
[333178940,1721921441646,-1381.18,0.00013698,2]
[333178941,1721921441655,-1834.42,0.00013698,2]
[333178942,1721921441666,-575.35,0.00013698,2]
[333178943,1721921441677,-500.0,0.00013698,2]
[333178944,1721921441688,-1089.16,0.00013698,2]
[333178945,1721921441698,-578.34,0.00013698,2]
[333178946,1721921441707,-3275.23,0.00013698,2]
[333178947,1721921441718,-500.0,0.00013698,2]
[333178948,1721921441730,-1512.31,0.00013698,2]
[333178949,1721921441742,-302.94005181,0.00013698,2]
[333178950,1721921441752,-5235.57,0.00013698,2]
[333178951,1721921441762,-827.63,0.00013698,2]
[333178952,1721921441772,-500.0,0.00013698,2]
[333178953,1721921441784,-500.0,0.00013698,2]
[333178954,1721921441796,-1603.44,0.00013698,2]
[333178955,1721921441808,-1418.75,0.00013698,2]
[333178956,1721921441819,-500.0,0.00013698,2]
[333178957,1721921441833,-500.0,0.00013698,2]
[333178958,1721921441842,-1374.45,0.00013698,2]
[333178959,1721921441853,-500.0,0.00013698,2]
[333178960,1721921441863,-1055.22,0.00013698,2]
[333178961,1721921441875,-500.0,0.00013698,2]
[333178962,1721921441886,-563.72,0.00013698,2]
[333178963,1721921441898,-1837.53,0.00013698,2]
[333178964,1721921441908,-1722.99,0.00013698,2]
[333178965,1721921441919,-500.0,0.00013698,2]
[333178966,1721921441929,-1281.56,0.00013698,2]
[333178967,1721921441939,-511.18,0.00013698,2]
[333178968,1721921441950,-500.0,0.00013698,2]
[333178969,1721921441959,-1274.64,0.00013698,2]
[333178970,1721921441970,-500.0,0.00013698,2]
[333178971,1721921441981,-500.0,0.00013698,2]
[333178972,1721921441991,-2861.76,0.00013698,2]
[333178973,1721921442008,-500.0,0.00013698,2]
[333178974,1721921442019,-500.0,0.00013698,2]
[333178975,1721921442031,-1716.25,0.00013698,2]
[333178976,1721921442044,-500.0,0.00013698,2]
[333178977,1721921442055,-500.0,0.00013698,2]
[333178978,1721921442066,-500.0,0.00013698,2]
[333178979,1721921442078,-500.0,0.00013698,2]
[333178980,1721921442088,-500.0,0.00013698,2]
[333178981,1721921442098,-514.68123155,0.00013698,2]
[333178982,1721921442108,-772.66,0.00013698,2]
[333178983,1721921442118,-3389.76,0.00013698,2]
[333178984,1721921442127,-336.50403891,0.00013698,2]
[333178985,1721921442137,-165.09132687,0.00013698,2]
[333178986,1721921442148,-500.0,0.00013698,2]
[333178987,1721921442157,-500.0,0.00013698,2]
[333178988,1721921442168,-221.91078877,0.00013698,2]
[333178989,1721921442179,-1018.45114479,0.00013698,2]
[333178990,1721921442190,-500.0,0.00013698,2]
[333178991,1721921442200,-1018.45114479,0.00013698,2]
[333178992,1721921442211,-500.0,0.00013698,2]
[333178993,1721921442221,-1018.45114479,0.00013698,2]
[333178994,1721921442230,-500.0,0.00013698,2]
[333178995,1721921442239,-500.0,0.00013698,2]
[333178996,1721921442250,-1018.45114479,0.00013698,2]